fUST/lending_fUST_20250704
["ID","MTS","AMOUNT","RATE_DAILY","PERIOD"]
[369521618,1751608250052,-460.0,0.00016986,2]
[369521620,1751608250062,-460.0,0.00016986,2]
[369521623,1751608250073,-540.0,0.00016986,2]
[369521625,1751608250085,-460.0,0.00016986,2]
[369521626,1751608250095,-545.71931318,0.00016986,2]
[369521628,1751608250104,-460.0,0.00016986,2]
[369521630,1751608250115,-460.0,0.00016986,2]
[369521632,1751608250125,-460.0,0.00016986,2]
[369521634,1751608250135,-547.51550633,0.00016986,2]
[369521636,1751608250145,-460.0,0.00016986,2]
[369521638,1751608250155,-463.36199677,0.00016986,2]
[369521640,1751608250165,-598.41,0.00016986,2]
[369521642,1751608250174,-379.25,0.00016986,2]
[369521644,1751608250184,-460.0,0.00016986,2]
[369521646,1751608250193,-460.0,0.00016986,2]
[369521648,1751608250202,-398.49371169,0.00016986,2]
[369521650,1751608250211,-460.0,0.00016986,2]
[369521652,1751608250222,-460.0,0.00016986,2]
[369521654,1751608250232,-460.0,0.00016986,2]
[369521656,1751608250241,-460.0,0.00016986,2]
[369521658,1751608250251,-460.0,0.00016986,2]
[369521660,1751608250260,-277.86314646,0.00016986,2]
[369521662,1751608250270,-460.0,0.00016986,2]
[369521664,1751608250280,-440.0,0.00016986,2]
[369521665,1751608250290,-460.0,0.00016986,2]
[369521666,1751608250299,-540.0,0.00016986,2]
[369521667,1751608250309,-460.0,0.00016986,2]
[369521668,1751608250319,-460.0,0.00016986,2]
[369521669,1751608250328,-460.0,0.00016986,2]
[369521670,1751608250337,-540.0,0.00016986,2]
[369521671,1751608250347,-540.0,0.00016986,2]
[369521672,1751608250356,-460.0,0.00016986,2]
[369521673,1751608250365,-460.0,0.00016986,2]
[369521674,1751608250374,-245.11843489,0.00016986,2]
[369521675,1751608250384,-427.61415118,0.00016986,2]
[369521676,1751608250393,-460.0,0.00016986,2]
[369521677,1751608250402,-460.0,0.00016986,2]
[369521678,1751608250412,-460.0,0.00016986,2]
[369521679,1751608250421,-499.05522411,0.00016986,2]
[369521680,1751608250431,-392.66,0.00016986,2]
[369521681,1751608250440,-460.0,0.00016986,2]
[369521682,1751608250449,-460.0,0.00016986,2]
[369521683,1751608250459,-460.0,0.00016986,2]
[369521684,1751608250468,-460.0,0.00016986,2]
[369521685,1751608250478,-507.36416216,0.00016986,2]
[369521686,1751608250489,-460.0,0.00016986,2]
[369521687,1751608250499,-460.0,0.00016986,2]
[369521688,1751608250510,-460.0,0.00016986,2]
[369521689,1751608250520,-460.0,0.00016986,2]
[369521690,1751608250529,-1424.24,0.00016986,2]
[369521691,1751608250539,-4062.24,0.00016986,2]
[369521692,1751608250548,-316.08548233,0.00016986,2]
[369521693,1751608250557,-460.0,0.00016986,2]
[369521694,1751608250566,-807.28,0.00016986,2]
[369521695,1751608250576,-460.0,0.00016986,2]
[369521696,1751608250585,-460.0,0.00016986,2]
[369521698,1751608250594,-547.53,0.00016986,2]
[369521699,1751608250603,-460.0,0.00016986,2]
[369521700,1751608250613,-475.54,0.00016986,2]
[369521701,1751608250623,-460.0,0.00016986,2]
[369521703,1751608250632,-460.0,0.00016986,2]
[369521705,1751608250642,-540.0,0.00016986,2]
[369521707,1751608250651,-1009.6,0.00016986,2]
[369521709,1751608250660,-540.0,0.00016986,2]
[369521711,1751608250670,-447.02245973,0.00016986,2]
[369521713,1751608250679,-460.0,0.00016986,2]
[369521715,1751608250688,-460.0,0.00016986,2]
[369521717,1751608250698,-460.0,0.00016986,2]
[369521719,1751608250707,-622.32,0.00016986,2]
[369521721,1751608250717,-460.0,0.00016986,2]
[369521724,1751608250728,-1871.14,0.00016986,2]
[369521725,1751608250738,-715.18,0.00016986,2]
[369521727,1751608250748,-411.41,0.00016986,2]
[369521729,1751608250757,-307.43803393,0.00016986,2]
[369521731,1751608250767,-4449.71,0.00016986,2]
[369521733,1751608250776,-558.77184396,0.00016986,2]
[369521735,1751608250786,-1143.57,0.00016986,2]
[369521737,1751608250795,-615.53,0.00016986,2]
[369521739,1751608250804,-460.0,0.00016986,2]
[369521741,1751608250814,-460.0,0.00016986,2]
[369521743,1751608250823,-374.30685836,0.00016986,2]
[369521745,1751608250833,-2989.73,0.00016986,2]
[369521747,1751608250843,-460.0,0.00016986,2]
[369521749,1751608250853,-460.0,0.00016986,2]
[369521751,1751608250862,-460.0,0.00016986,2]
[369521753,1751608250872,-460.0,0.00016986,2]
[369521755,1751608250881,-2288.01,0.00016986,2]
[369521757,1751608250890,-460.0,0.00016986,2]
[369521759,1751608250900,-460.0,0.00016986,2]
[369521761,1751608250909,-460.0,0.00016986,2]
[369521763,1751608250919,-553.95712316,0.00016986,2]
[369521765,1751608250928,-460.0,0.00016986,2]
[369521767,1751608250938,-460.0,0.00016986,2]
[369521769,1751608250947,-924.76,0.00016986,2]
[369521771,1751608250956,-460.0,0.00016986,2]
[369521773,1751608250965,-460.0,0.00016986,2]
[369521775,1751608250976,-1496.57,0.00016986,2]
[369521777,1751608250985,-460.0,0.00016986,2]
[369521779,1751608250994,-1149.44,0.00016986,2]
[369521781,1751608251004,-460.0,0.00016986,2]
[369521783,1751608251013,-582.63,0.00016986,2]
[369521785,1751608251022,-460.0,0.00016986,2]
[369521787,1751608251032,-1552.32,0.00016986,2]
[369521789,1751608251042,-460.0,0.00016986,2]
[369521791,1751608251051,-460.0,0.00016986,2]
[369521793,1751608251061,-460.0,0.00016986,2]
[369521795,1751608251070,-733.51,0.00016986,2]
[369521797,1751608251083,-1321.46,0.00016986,2]
[369521799,1751608251093,-460.0,0.00016986,2]
[369521801,1751608251102,-460.0,0.00016986,2]
[369521803,1751608251112,-460.0,0.00016986,2]
[369521805,1751608251123,-460.0,0.00016986,2]
[369521807,1751608251132,-460.0,0.00016986,2]
[369521809,1751608251142,-227.28,0.00016986,2]
[369521812,1751608251153,-460.0,0.00016986,2]
[369521814,1751608251164,-460.0,0.00016986,2]
[369521816,1751608251174,-659.97,0.00016986,2]
[369521818,1751608251183,-460.0,0.00016986,2]
[369521819,1751608251192,-460.0,0.00016986,2]
[369521821,1751608251202,-465.81277191,0.00016986,2]
[369521824,1751608251212,-540.0,0.00016986,2]
[369521826,1751608251223,-418.62,0.00016986,2]
[369521827,1751608251232,-460.0,0.00016986,2]
[369521829,1751608251241,-2488.9,0.00016986,2]
[369521831,1751608251250,-523.74025087,0.00016986,2]
[369521833,1751608251259,-460.0,0.00016986,2]
[369521835,1751608251268,-414.42538936,0.00016986,2]
[369521837,1751608251278,-460.0,0.00016986,2]
[369521839,1751608251287,-460.0,0.00016986,2]
[369521841,1751608251298,-460.0,0.00016986,2]
[369521843,1751608251308,-460.0,0.00016986,2]
[369521845,1751608251318,-540.0,0.00016986,2]
[369521847,1751608251327,-849.84,0.00016986,2]
[369521849,1751608251337,-2059.46,0.00016986,2]
[369521851,1751608251346,-594.83,0.00016986,2]
[369521854,1751608251356,-3649.67,0.00016986,2]
[369521855,1751608251366,-460.0,0.00016986,2]
[369521857,1751608251375,-460.0,0.00016986,2]
[369521859,1751608251384,-460.0,0.00016986,2]
[369521862,1751608251394,-460.0,0.00016986,2]
[369521864,1751608251403,-460.0,0.00016986,2]
[369521866,1751608251413,-460.0,0.00016986,2]
[369521868,1751608251422,-460.0,0.00016986,2]
[369521870,1751608251432,-460.0,0.00016986,2]
[369521872,1751608251442,-460.0,0.00016986,2]
[369521885,1751608251559,-715.29,0.00016986,2]
[369521887,1751608251570,-475.22,0.00016986,2]
[369521889,1751608251580,-460.0,0.00016986,2]
[369521891,1751608251589,-460.0,0.00016986,2]
[369521893,1751608251599,-460.14,0.00016986,2]
[369521895,1751608251608,-460.0,0.00016986,2]
[369521897,1751608251618,-540.0,0.00016986,2]
[369521899,1751608251627,-460.0,0.00016986,2]
[369521901,1751608251637,-1572.51,0.00016986,2]
[369521903,1751608251646,-1726.5,0.00016986,2]
[369521906,1751608251656,-1240.68,0.00016986,2]
[369521908,1751608251666,-193.57714833,0.00016986,2]
[369521910,1751608251675,-460.0,0.00016986,2]
[369521912,1751608251685,-547.52,0.00016986,2]
[369521914,1751608251694,-389.56,0.00016986,2]
[369521916,1751608251704,-460.0,0.00016986,2]
[369521918,1751608251714,-460.0,0.00016986,2]
[369521920,1751608251723,-460.0,0.00016986,2]
[369521922,1751608251733,-166.93,0.00016986,2]
[369521924,1751608251742,-1678.99,0.00016986,2]
[369521926,1751608251752,-460.0,0.00016986,2]
[369521928,1751608251761,-460.0,0.00016986,2]
[369521930,1751608251771,-460.0,0.00016986,2]
[369521932,1751608251781,-2993.3,0.00016986,2]
[369521934,1751608251791,-460.0,0.00016986,2]
[369521936,1751608251800,-460.0,0.00016986,2]
[369521937,1751608251810,-460.0,0.00016986,2]
[369521939,1751608251819,-460.0,0.00016986,2]
[369521941,1751608251829,-291.78,0.00016986,2]
[369521943,1751608251839,-540.49,0.00016986,2]
[369521946,1751608251849,-569.2,0.00016986,2]
[369521947,1751608251859,-460.0,0.00016986,2]
[369521949,1751608251869,-465.89611115,0.00016986,2]
[369521951,1751608251879,-460.0,0.00016986,2]
[369521953,1751608251888,-460.0,0.00016986,2]
[369521955,1751608251899,-460.0,0.00016986,2]
[369521957,1751608251909,-717.53,0.00016986,2]
[369521959,1751608251919,-460.0,0.00016986,2]
[369521961,1751608251929,-460.0,0.00016986,2]
[369521963,1751608251939,-460.0,0.00016986,2]
[369521965,1751608251949,-324.89612957,0.00016986,2]
[369521967,1751608251959,-710.36,0.00016986,2]
[369521969,1751608251968,-909.31,0.00016986,2]
[369521972,1751608251978,-460.0,0.00016986,2]
[369521974,1751608251987,-460.0,0.00016986,2]
[369521975,1751608251998,-460.0,0.00016986,2]
[369521977,1751608252009,-902.15,0.00016986,2]
[369521979,1751608252019,-460.0,0.00016986,2]
[369521981,1751608252029,-181.91195971,0.00017023,2]
[369521983,1751608252038,-500.6418898,0.00017063,2]
[369521985,1751608252048,-500.0,0.00017063,2]
[369521987,1751608252058,-500.0,0.00017063,2]
[369521990,1751608252069,-257.23822113,0.00017063,2]
[369521991,1751608252083,-459.17432177,0.00017063,2]
[369521993,1751608252093,-501.18491003,0.00017063,2]
[369521996,1751608252102,-151.0,0.00017128,2]
[369521998,1751608252111,-4129.16737809,0.00017176,2]
[369522000,1751608252123,-160.0,0.00017232,2]
[369522002,1751608252132,-837.48520791,0.00017232,2]
[369522004,1751608252141,-847.91215827,0.00017232,2]
[369522005,1751608252150,-160.0,0.00017232,2]
[369522007,1751608252160,-12578.03337979,0.00017232,2]
[369522010,1751608252170,-230.40116161,0.00017232,2]
[369522011,1751608252179,-160.0,0.00017232,2]
[369522014,1751608252189,-160.0,0.00017232,2]
[369522016,1751608252199,-215.11129906,0.00017232,2]
[369522018,1751608252209,-213.97741257,0.00017232,2]
[369522020,1751608252220,-460.0,0.0001726,2]
[369522022,1751608252229,-460.0,0.0001726,2]
[369522024,1751608252239,-460.0,0.0001726,2]
[369522026,1751608252249,-460.0,0.0001726,2]
[369522028,1751608252259,-460.0,0.0001726,2]
[369522030,1751608252269,-460.0,0.0001726,2]
[369522032,1751608252280,-460.0,0.0001726,2]
[369522034,1751608252289,-460.0,0.0001726,2]
[369522036,1751608252299,-460.0,0.0001726,2]
[369522038,1751608252309,-183.46305526,0.0001726,2]
[369522040,1751608252319,-585.13155146,0.0001726,2]
[369522042,1751608252328,-460.0,0.0001726,2]
[369522044,1751608252338,-460.0,0.0001726,2]
[369522046,1751608252348,-586.34131155,0.0001726,2]
[369522049,1751608252358,-460.0,0.0001726,2]
[369522051,1751608252367,-583.97956685,0.0001726,2]
[369522053,1751608252377,-288.02,0.0001726,2]
[369522055,1751608252386,-460.0,0.0001726,2]
[369522057,1751608252396,-460.0,0.0001726,2]
[369522059,1751608252408,-225.84463201,0.0001726,2]
[369522061,1751608252418,-460.0,0.0001726,2]
[369522063,1751608252428,-582.93553295,0.0001726,2]
[369522065,1751608252438,-460.0,0.0001726,2]
[369522067,1751608252448,-460.0,0.0001726,2]
[369522069,1751608252457,-154.36272413,0.0001726,2]
[369522071,1751608252468,-526.88,0.0001726,2]
[369522073,1751608252479,-460.0,0.0001726,2]
[369522075,1751608252489,-460.0,0.0001726,2]
[369522077,1751608252498,-460.0,0.0001726,2]
[369522079,1751608252508,-460.0,0.0001726,2]
[369522081,1751608252517,-460.0,0.0001726,2]
[369522083,1751608252527,-589.1,0.0001726,2]
[369522085,1751608252536,-460.0,0.0001726,2]
[369522087,1751608252546,-460.86975443,0.0001726,2]
[369522089,1751608252557,-572.32,0.0001726,2]
[369522091,1751608252566,-460.0,0.0001726,2]
[369522093,1751608252576,-491.71760817,0.0001726,2]
[369522095,1751608252587,-607.33,0.0001726,2]
[369522097,1751608252597,-460.0,0.0001726,2]
[369522099,1751608252606,-549.69420063,0.0001726,2]
[369522101,1751608252617,-460.0,0.0001726,2]
[369522103,1751608252626,-439.96461952,0.0001726,2]
[369522105,1751608252638,-500.0,0.0001726,2]
[369522107,1751608252647,-460.0,0.0001726,2]
[369522109,1751608252658,-460.0,0.0001726,2]
[369522111,1751608252667,-500.32,0.0001726,2]
[369522113,1751608252677,-460.0,0.0001726,2]
[369522115,1751608252687,-460.0,0.0001726,2]
[369522117,1751608252696,-460.0,0.0001726,2]
[369522119,1751608252706,-510.92744051,0.0001726,2]
[369522121,1751608252715,-351.98976591,0.0001726,2]
[369522124,1751608252726,-152.792112,0.0001726,2]
[369522126,1751608252735,-460.0,0.0001726,2]
[369522128,1751608252746,-460.0,0.0001726,2]
[369522130,1751608252757,-581.33,0.0001726,2]
[369522132,1751608252767,-546.51049331,0.0001726,2]
[369522134,1751608252776,-460.0,0.0001726,2]
[369522136,1751608252786,-500.0,0.0001726,2]
[369522138,1751608252795,-349.8964706,0.0001726,2]
[369522140,1751608252805,-504.16641417,0.0001726,2]
[369522142,1751608252814,-460.0,0.0001726,2]
[369522144,1751608252824,-258.759449,0.0001726,2]
[369522146,1751608252834,-460.0,0.0001726,2]
[369522148,1751608252844,-212.0419071,0.0001726,2]
[369522150,1751608252853,-598.41,0.0001726,2]
[369522152,1751608252863,-460.0,0.0001726,2]
[369522153,1751608252872,-460.0,0.0001726,2]
[369522154,1751608252882,-460.0,0.0001726,2]
[369522155,1751608252892,-460.0,0.0001726,2]
[369522156,1751608252902,-460.0,0.0001726,2]
[369522157,1751608252911,-460.0,0.0001726,2]
[369522158,1751608252921,-460.0,0.0001726,2]
[369522159,1751608252930,-460.0,0.0001726,2]
[369522160,1751608252940,-540.0,0.0001726,2]
[369522161,1751608252949,-185.67508332,0.0001726,2]
[369522162,1751608252958,-301.45,0.0001726,2]
[369522163,1751608252967,-347.94,0.0001726,2]
[369522165,1751608252977,-460.0,0.0001726,2]
[369522166,1751608252986,-460.0,0.0001726,2]
[369522168,1751608252995,-460.0,0.0001726,2]
[369522170,1751608253004,-460.0,0.0001726,2]
[369522173,1751608253014,-460.0,0.0001726,2]
[369522175,1751608253023,-460.0,0.0001726,2]
[369522177,1751608253033,-460.0,0.0001726,2]
[369522179,1751608253042,-151.0,0.0001726,2]
[369522181,1751608253051,-460.0,0.0001726,2]
[369522183,1751608253061,-460.0,0.0001726,2]
[369522185,1751608253070,-460.0,0.0001726,2]
[369522187,1751608253084,-380.47804534,0.0001726,2]
[369522189,1751608253094,-460.0,0.0001726,2]
[369522191,1751608253103,-1424.24,0.0001726,2]
[369522193,1751608253113,-4062.24,0.0001726,2]
[369522195,1751608253123,-460.0,0.0001726,2]
[369522197,1751608253132,-807.28,0.0001726,2]
[369522199,1751608253142,-460.0,0.0001726,2]
[369522201,1751608253152,-460.0,0.0001726,2]
[369522203,1751608253162,-547.53,0.0001726,2]
[369522205,1751608253171,-460.0,0.0001726,2]
[369522207,1751608253181,-475.54,0.0001726,2]
[369522210,1751608253190,-342.28,0.0001726,2]
[369522212,1751608253199,-460.0,0.0001726,2]
[369522214,1751608253209,-1009.6,0.0001726,2]
[369522216,1751608253218,-151.0,0.0001726,2]
[369522218,1751608253227,-355.83161754,0.0001726,2]
[369522220,1751608253237,-460.0,0.0001726,2]
[369522222,1751608253247,-460.0,0.0001726,2]
[369522224,1751608253257,-622.32,0.0001726,2]
[369522226,1751608253266,-460.0,0.0001726,2]
[369522228,1751608253276,-1871.14,0.0001726,2]
[369522230,1751608253285,-715.18,0.0001726,2]
[369522232,1751608253295,-4449.71,0.0001726,2]
[369522234,1751608253304,-1143.57,0.0001726,2]
[369522236,1751608253314,-615.53,0.0001726,2]
[369522238,1751608253324,-460.0,0.0001726,2]
[369522240,1751608253333,-396.61477274,0.0001726,2]
[369522242,1751608253344,-151.0,0.0001726,2]
[369522245,1751608253353,-2989.73,0.0001726,2]
[369522247,1751608253363,-460.0,0.0001726,2]
[369522249,1751608253373,-460.0,0.0001726,2]
[369522251,1751608253383,-460.0,0.0001726,2]
[369522253,1751608253393,-460.0,0.0001726,2]
[369522266,1751608253501,-2288.01,0.0001726,2]
[369522268,1751608253513,-460.0,0.0001726,2]
[369522270,1751608253523,-460.0,0.0001726,2]
[369522272,1751608253534,-540.0,0.0001726,2]
[369522274,1751608253544,-460.0,0.0001726,2]
[369522276,1751608253554,-460.0,0.0001726,2]
[369522278,1751608253564,-924.76,0.0001726,2]
[369522280,1751608253574,-460.0,0.0001726,2]
[369522282,1751608253583,-460.0,0.0001726,2]
[369522284,1751608253592,-1496.57,0.0001726,2]
[369522286,1751608253602,-460.0,0.0001726,2]
[369522288,1751608253611,-1149.44,0.0001726,2]
[369522290,1751608253621,-460.0,0.0001726,2]
[369522292,1751608253630,-582.63,0.0001726,2]
[369522294,1751608253639,-460.0,0.0001726,2]
[369522296,1751608253648,-1552.32,0.0001726,2]
[369522298,1751608253658,-460.0,0.0001726,2]
[369522300,1751608253667,-540.0,0.0001726,2]
[369522302,1751608253676,-460.0,0.0001726,2]
[369522304,1751608253686,-733.51,0.0001726,2]
[369522307,1751608253695,-1321.46,0.0001726,2]
[369522308,1751608253704,-460.0,0.0001726,2]
[369522310,1751608253713,-493.27208825,0.0001726,2]
[369522321,1751608253885,-4.24118636,0.0001726,2]
[369522322,1751608253895,-273.0,0.0001726,2]
[369522323,1751608253904,-460.0,0.0001726,2]
[369522324,1751608253914,-460.0,0.0001726,2]
[369522325,1751608253923,-151.0,0.0001726,2]
[369522326,1751608253933,-460.0,0.0001726,2]
[369522327,1751608253942,-460.0,0.0001726,2]
[369522328,1751608253951,-659.97,0.0001726,2]
[369522329,1751608253961,-460.0,0.0001726,2]
[369522330,1751608253970,-211.18,0.0001726,2]
[369522331,1751608253980,-500.0,0.0001726,2]
[369522332,1751608253989,-2488.9,0.0001726,2]
[369522333,1751608253998,-460.0,0.0001726,2]
[369522334,1751608254008,-460.0,0.0001726,2]
[369522336,1751608254017,-460.0,0.0001726,2]
[369522338,1751608254027,-460.0,0.0001726,2]
[369522340,1751608254037,-460.0,0.0001726,2]
[369522342,1751608254046,-849.84,0.0001726,2]
[369522344,1751608254056,-2059.46,0.0001726,2]
[369522346,1751608254065,-594.83,0.0001726,2]
[369522348,1751608254076,-3649.67,0.0001726,2]
[369522350,1751608254086,-587.06142668,0.0001726,2]
[369522352,1751608254096,-460.0,0.0001726,2]
[369522354,1751608254105,-583.98,0.0001726,2]
[369522356,1751608254114,-460.0,0.0001726,2]
[369522359,1751608254125,-224.160924,0.0001726,2]
[369522361,1751608254135,-157.7010404,0.0001726,2]
[369522363,1751608254144,-269.56,0.0001726,2]
[369522365,1751608254155,-460.0,0.0001726,2]
[369522367,1751608254166,-460.0,0.0001726,2]
[369522369,1751608254175,-224.160924,0.0001726,2]
[369522371,1751608254184,-460.0,0.0001726,2]
[369522373,1751608254194,-715.29,0.0001726,2]
[369522375,1751608254204,-475.22,0.0001726,2]
[369522377,1751608254213,-460.0,0.0001726,2]
[369522379,1751608254223,-460.0,0.0001726,2]
[369522381,1751608254232,-460.14,0.0001726,2]
[369522383,1751608254242,-593.61,0.0001726,2]
[369522385,1751608254252,-460.0,0.0001726,2]
[369522387,1751608254261,-1572.51,0.0001726,2]
[369522389,1751608254271,-1726.5,0.0001726,2]
[369522391,1751608254280,-1240.68,0.0001726,2]
[369522393,1751608254290,-460.0,0.0001726,2]
[369522395,1751608254300,-547.52,0.0001726,2]
[369522397,1751608254309,-460.0,0.0001726,2]
[369522399,1751608254319,-460.0,0.0001726,2]
[369522401,1751608254328,-460.0,0.0001726,2]
[369522403,1751608254338,-1678.99,0.0001726,2]
[369522405,1751608254348,-460.0,0.0001726,2]
[369522407,1751608254357,-460.0,0.0001726,2]
[369522409,1751608254366,-194.77,0.0001726,2]
[369522411,1751608254376,-2993.3,0.0001726,2]
[369522413,1751608254386,-573.71,0.0001726,2]
[369522415,1751608254395,-460.0,0.0001726,2]
[369522417,1751608254407,-460.0,0.0001726,2]
[369522420,1751608254417,-460.0,0.0001726,2]
[369522422,1751608254427,-540.49,0.0001726,2]
[369522424,1751608254436,-569.2,0.0001726,2]
[369522426,1751608254446,-151.908877,0.0001726,2]
[369522428,1751608254457,-460.0,0.0001726,2]
[369522430,1751608254466,-460.0,0.0001726,2]
[369522432,1751608254476,-458.24,0.0001726,2]
[369522434,1751608254485,-460.0,0.0001726,2]
[369522436,1751608254495,-717.53,0.0001726,2]
[369522438,1751608254507,-460.0,0.0001726,2]
[369522440,1751608254516,-460.0,0.0001726,2]
[369522442,1751608254526,-272.82,0.0001726,2]
[369522444,1751608254535,-710.36,0.0001726,2]
[369522446,1751608254545,-909.31,0.0001726,2]
[369522448,1751608254556,-460.0,0.0001726,2]
[369522450,1751608254565,-460.0,0.0001726,2]
[369522452,1751608254575,-902.15,0.0001726,2]
[369522454,1751608254584,-460.0,0.0001726,2]
[369522456,1751608254594,-500.0,0.00017302,2]
[369522458,1751608254603,-500.0,0.00017302,2]
[369522460,1751608254613,-500.0,0.00017302,2]
[369522462,1751608254622,-622.33126372,0.00017306,2]
[369522464,1751608254632,-1000.0,0.00017321,2]
[369522466,1751608254641,-454.46365255,0.00017321,2]
[369522468,1751608254651,-187.72859494,0.00017322,2]
[369522470,1751608254661,-501.20991566,0.00017322,2]
[369522472,1751608254672,-502.12625686,0.00017322,2]
[369522474,1751608254682,-500.0,0.00017322,2]
[369522476,1751608254692,-500.0,0.00017322,2]
[369522478,1751608254701,-52644.80058903,0.00017359,2]
[369522480,1751608254711,-181.91195971,0.00017366,2]
[369522482,1751608254720,-3014.44136106,0.00017452,2]
[369522485,1751608254733,-561.61985105,0.00017452,2]
[369522487,1751608254744,-553.10616598,0.00017452,2]
[369522489,1751608254755,-151.0,0.000175,2]
[369522491,1751608254765,-245.1,0.00017518,2]
[369522493,1751608254774,-151.0,0.00017534,2]
[369522496,1751608254784,-460.0,0.00017534,2]
[369522498,1751608254794,-460.0,0.00017534,2]
[369522500,1751608254805,-460.0,0.00017534,2]
[369522502,1751608254815,-426.97135607,0.00017534,2]
[369522504,1751608254824,-460.0,0.00017534,2]
[369522506,1751608254833,-298.98030441,0.00017534,2]
[369522508,1751608254842,-208.3,0.00017534,2]
[369522510,1751608254854,-460.0,0.00017534,2]
[369522512,1751608254864,-460.0,0.00017534,2]
[369522514,1751608254875,-377.35237821,0.00017534,2]
[369522516,1751608254887,-82.64762179,0.00017534,2]
[369522518,1751608254899,-460.0,0.00017534,2]
[369522520,1751608254911,-437.93,0.00017534,2]
[369522522,1751608254922,-460.0,0.00017534,2]
[369522524,1751608254932,-460.0,0.00017534,2]
[369522526,1751608254942,-460.0,0.00017534,2]
[369522528,1751608254951,-460.0,0.00017534,2]
[369522530,1751608254961,-460.0,0.00017534,2]
[369522532,1751608254971,-540.0,0.00017534,2]
[369522534,1751608254981,-540.0,0.00017534,2]
[369522537,1751608254991,-460.0,0.00017534,2]
[369522539,1751608255001,-460.0,0.00017534,2]
[369522541,1751608255011,-244.97631345,0.00017534,2]
[369522542,1751608255020,-460.0,0.00017534,2]
[369522544,1751608255030,-460.0,0.00017534,2]
[369522556,1751608255139,-607.33,0.00017534,2]
[369522558,1751608255152,-198.97051248,0.00017534,2]
[369522639,1751608255923,-460.0,0.00016438,2]
[369522641,1751608255933,-462.69231658,0.00016438,2]
[369522644,1751608255943,-460.0,0.00016438,2]
[369522646,1751608255952,-460.0,0.00016438,2]
[369522648,1751608255962,-463.16441764,0.00016438,2]
[369522650,1751608255974,-460.0,0.00016438,2]
[369522651,1751608255983,-460.0,0.00016438,2]
[369522653,1751608255994,-976.77836269,0.00016712,2]
[369526482,1751608416739,166.577079,0.00013699,2]
[369526483,1751608480646,25999.0,0.000273,120]
[369526484,1751608517292,5466.05316828,0.00025,120]
[369526485,1751608583474,1000.0,0.00027,120]
[369526486,1751608602340,1000.0,0.00027,120]
[369526487,1751608605515,1000.0,0.00027,120]
[369526488,1751608606081,1000.0,0.00027,120]
[369526489,1751608655313,5000.0,0.0001611,6]
[369526490,1751608658737,440.18232411,0.00015267,2]
[369526491,1751608672018,5000.0,0.0001611,6]
[369526492,1751608688416,331.05074965,0.0001611,6]
[369526493,1751608711958,201.87749838,0.00015267,2]
[369526506,1751608864121,15487.3454794,0.00015091,2]
[369526507,1751608864143,3714.0350994,0.00015091,2]
[369526508,1751608912543,826.65491548,0.000153,2]
[369526509,1751608940828,202.0379648,0.00015267,2]
[369526510,1751609046438,202.0379648,0.00015267,2]